bitfinex/quotes_ETHUSD_20250904
["timestamp","ask_amount","ask_price","bid_price","bid_amount"]
[1756996685415,0.4293,4367.6,4367.4,0.21414307]
[1756996685631,0.4293,4367.6,4367.5,0.21414307]
[1756996685953,0.025,4367.8,4367.5,0.21414307]
[1756996686157,0.025,4367.8,4367.6,0.21414307]
[1756996686336,0.025,4367.8,4367.7,0.21414307]
[1756996686541,0.3151,4367.8,4367.7,0.21414307]
[1756996687011,0.7444,4367.8,4367.7,0.21414307]
[1756996688161,0.025,4367.8,4367.7,0.21414307]
[1756996688341,0.3151,4367.8,4367.7,0.21414307]
[1756996688539,0.7444,4367.8,4367.7,0.21414307]
[1756996689329,0.3151,4367.8,4367.7,0.21414307]
[1756996689569,0.7444,4367.8,4367.7,0.21414307]
[1756996690130,0.3151,4367.8,4367.7,0.21414307]
[1756996690327,0.0242,4367.8,4367.7,2.5036776]
[1756996691059,0.0242,4367.8,4367.7,2.8011776]
[1756996691262,0.0242,4367.8,4367.7,2.5036776]
[1756996692440,0.3143,4367.8,4367.7,0.21414307]
[1756996692759,0.0242,4367.8,4367.7,0.21414307]
[1756996692935,0.3143,4367.8,4367.7,0.21414307]
[1756996693336,0.7436,4367.8,4367.7,0.21414307]
[1756996694372,0.0242,4367.8,4367.7,8.5322396]
[1756996694670,0.0242,4367.8,4367.7,9.0103396]
[1756996694872,0.7436,4367.8,4367.7,0.21414307]
[1756996695534,0.3153,4367.8,4367.7,2.5036776]
[1756996695734,0.0252,4367.8,4367.7,2.5036776]
[1756996695960,0.0252,4367.8,4367.7,2.58703453]
[1756996696164,0.0252,4367.8,4367.7,2.28953453]
[1756996696376,0.0252,4367.8,4367.7,0.2975]
[1756996696666,0.0252,4367.8,4367.7,2.28953453]
[1756996697062,0.3153,4367.8,4367.7,0.21417622]
[1756996697268,0.7446,4367.8,4367.7,0.21417622]
[1756996699180,0.3153,4367.8,4367.7,2.50371075]
[1756996699373,0.0252,4367.8,4367.7,2.50371075]
[1756996699680,0.0252,4367.8,4367.7,2.80121075]
[1756996699973,0.0252,4367.8,4367.7,3.27931075]
[1756996700542,0.0252,4367.8,4367.7,10.76371075]
[1756996701167,1.687,4369.6,4368.7,2.28901046]
[1756996701347,1.687,4369.6,4368.7,0.21417622]
[1756996701348,0.1144,4368.9,4368.7,0.21417622]
[1756996701978,0.1144,4368.9,4368.7,8.53174868]
[1756996702149,0.7436,4368.8,4368.7,2.50318668]
[1756996702684,0.7436,4368.8,4368.7,0.21417622]
[1756996703070,0.0242,4368.8,4368.7,2.50318668]
[1756996703474,0.7436,4368.8,4368.7,0.21417622]
[1756996704363,1.09976653,4368.8,4368.7,0.21417622]
[1756996704585,5.03676653,4368.8,4368.7,0.21417622]
[1756996705178,7.74052459,4368.8,4368.7,0.21417622]
[1756996705370,5.45156653,4368.8,4368.7,0.21417622]
[1756996705566,5.03676653,4368.8,4368.7,0.21405947]
[1756996707096,5.03676653,4368.8,4368.0,3.0]
[1756996707283,0.1144,4368.4,4368.1,2.28928325]
[1756996707590,0.1144,4368.4,4368.0,3.0]
[1756996707808,0.1144,4368.5,4368.4,2.28916765]
[1756996707962,0.1144,4368.5,4368.4,11.02022965]
[1756996708162,0.1144,4368.5,4368.4,11.31772965]
[1756996708580,0.1144,4368.5,4368.4,11.79582965]
[1756996709381,0.1144,4368.5,4368.4,6.06476765]
[1756996709585,0.1144,4368.5,4368.4,11.79582965]
[1756996710098,0.0242,4368.8,4368.7,2.28901046]
[1756996711187,0.0242,4368.8,4368.7,2.97700259]
[1756996711383,0.0242,4368.8,4368.7,8.70806459]
[1756996711687,0.0242,4368.8,4368.7,2.97700259]
[1756996713397,0.0242,4368.8,4368.7,3.06941046]
[1756996714379,0.0252,4368.8,4368.7,3.06941046]
[1756996714583,0.0252,4368.8,4368.7,8.80047246]
[1756996715687,0.0244,4368.8,4368.7,8.80047246]
[1756996716269,0.0244,4368.8,4368.7,11.80047246]
[1756996716789,0.0244,4368.8,4368.7,12.29236286]
[1756996717481,0.0244,4368.8,4368.7,12.76086286]
[1756996718081,0.0244,4368.8,4368.7,12.29236286]
[1756996718912,0.0244,4368.8,4368.7,6.56130086]
[1756996719108,0.0244,4368.8,4368.7,5.28901046]
[1756996719404,0.0244,4368.8,4368.7,6.06941046]
[1756996719579,0.3126,4368.8,4368.7,5.28901046]
[1756996719775,0.0244,4368.8,4368.7,5.28901046]
[1756996720800,0.3126,4368.8,4368.7,5.28901046]
[1756996721282,0.0244,4368.8,4368.7,5.28901046]
[1756996721683,0.3126,4368.8,4368.7,5.28901046]
[1756996722019,0.0244,4368.8,4368.7,5.28901046]
[1756996723300,0.0244,4368.8,4368.7,6.06941046]
[1756996723506,0.0244,4368.8,4368.7,6.18381046]
[1756996723708,0.0244,4368.8,4368.7,5.87221046]
[1756996724020,0.0244,4368.8,4368.7,9.69181046]
[1756996724407,0.0244,4368.8,4368.7,10.00341046]
[1756996724919,0.0244,4368.8,4368.7,15.73447246]
[1756996727313,0.0244,4368.8,4368.7,16.42241568]
[1756996728622,0.0244,4368.8,4368.7,16.89091568]
[1756996729011,0.025,4369.8,4368.9,2.28889732]
[1756996729213,0.025,4369.8,4369.7,5.60008662]
[1756996729414,0.025,4369.8,4369.7,9.53308662]
[1756996729799,0.025,4369.8,4369.7,16.42073097]
[1756996730022,0.025,4369.8,4369.7,16.10913097]
[1756996730211,0.7738,4369.8,4369.7,5.28848662]
[1756996730520,0.7738,4369.8,4369.7,11.01954862]
[1756996730896,0.7738,4369.8,4369.7,11.70735462]
[1756996731223,0.7738,4369.8,4369.3,3.933]
[1756996731224,2.10538777,4369.8,4369.4,2.28859421]
[1756996731407,0.4606,4369.7,4369.5,2.28859075]
[1756996731605,0.1144,4369.5,4369.4,2.28864374]
[1756996731803,0.1394,4369.8,4369.3,12.02776799]
[1756996732004,0.1394,4369.8,4369.7,0.3116]
[1756996732203,0.4856,4369.8,4369.7,9.14196702]
[1756996732425,0.025,4369.8,4369.7,9.14196702]
[1756996732625,0.7738,4369.8,4369.7,2.28848662]
[1756996732839,0.7738,4369.8,4369.5,0.1144]
[1756996733017,0.7738,4369.8,4369.7,2.28848662]
[1756996733018,0.026,4369.8,4369.7,2.28848662]
[1756996733424,0.3142,4369.8,4369.7,2.28848662]
[1756996733609,0.026,4369.8,4369.7,2.28848662]
[1756996733814,0.3142,4369.8,4369.7,2.28848662]
[1756996734015,0.3142,4369.8,4369.6,3.933]
[1756996734419,0.4606,4369.7,4369.6,6.22153443]
[1756996734614,0.7488,4369.7,4369.6,6.22153443]
[1756996734939,0.2882,4369.7,4369.6,6.22153443]
[1756996735243,0.7488,4369.7,4369.6,3.933]
[1756996735423,0.7488,4369.7,4369.5,3.933]
[1756996735744,0.4606,4369.6,4369.5,3.0]
[1756996736040,0.4026,4369.7,4369.5,3.0]
[1756996736041,0.1144,4369.7,4369.5,3.0]
[1756996736228,0.7488,4369.6,4369.5,3.0]
[1756996736738,0.7488,4369.6,4369.3,3.0]
[1756996737113,0.4606,4369.5,4369.3,3.0]
[1756996737319,0.2882,4369.4,4369.3,3.0]
[1756996737537,0.7488,4369.4,4369.3,5.28869612]
[1756996737726,0.2882,4369.4,4369.3,2.28869612]
[1756996738030,0.2882,4369.4,4369.3,5.28869612]
[1756996738236,0.7488,4369.4,4368.9,0.80230063]
[1756996738554,0.4606,4369.3,4369.2,2.28874851]
[1756996738737,0.1144,4369.4,4369.2,2.28874851]
[1756996738914,0.1144,4369.4,4369.0,3.0]
[1756996738915,0.7488,4369.3,4369.1,2.28878356]
[1756996739121,0.1144,4369.4,4369.2,0.7804]
[1756996739341,0.1144,4369.4,4369.3,2.28869612]
[1756996739540,0.1144,4369.4,4369.3,2.75749612]
[1756996739746,0.1144,4369.4,4369.3,3.06909612]
[1756996740119,0.1144,4369.4,4369.3,2.28869612]
[1756996740726,4.4186,4369.8,4369.6,2.28849119]
[1756996740932,0.8786,4369.7,4369.3,0.4976]
[1756996741128,0.8778,4369.7,4369.5,2.28854969]
[1756996741327,0.8778,4369.7,4369.4,5.78623934]
[1756996741562,0.8778,4369.7,4369.4,3.4976]
[1756996741730,0.8778,4369.7,4369.6,2.28853899]
[1756996741935,0.4044,4369.7,4369.5,2.28855073]
[1756996742129,0.4044,4369.7,4369.4,0.4976]
[1756996742962,0.1144,4369.7,4369.6,2.28853899]
[1756996743117,0.026,4369.8,4369.7,2.28848662]
[1756996743317,0.026,4369.8,4369.7,3.31377236]
[1756996744258,0.026,4369.8,4369.7,0.21428574]
[1756996744566,0.7902,4369.8,4369.7,2.50277236]
[1756996745242,0.3168,4369.8,4369.7,2.50277236]
[1756996745447,0.026,4369.8,4369.7,2.81617236]
[1756996745661,0.026,4369.8,4369.7,3.31377236]
[1756996746638,0.026,4369.8,4369.7,6.31377236]
[1756996751076,0.026,4369.8,4369.7,6.00037236]
[1756996751578,0.7902,4369.8,4369.7,0.21428574]
[1756996751887,5.136,4369.8,4369.7,0.21428574]
[1756996752092,6.0492,4369.8,4369.7,0.21428574]
[1756996752598,0.026,4369.8,4369.7,1.02528574]
[1756996752748,0.3168,4369.8,4369.7,2.50277236]
[1756996752948,0.7902,4369.8,4369.7,2.50277236]
[1756996753250,0.3168,4369.8,4369.7,2.50277236]
[1756996753478,0.7902,4369.8,4369.7,2.50277236]
[1756996753746,0.026,4369.8,4369.7,2.50277236]
[1756996753995,0.7902,4369.8,4369.7,2.50277236]
[1756996754360,0.026,4369.8,4369.7,2.50277236]
[1756996754675,4.7202,4369.8,4369.7,0.21428574]
[1756996754876,1.50424,4369.8,4369.7,0.21428574]
[1756996755179,5.43424,4369.8,4369.7,0.21428574]
[1756996755389,1.50424,4369.8,4369.7,0.21428574]
[1756996755602,5.84904,4369.8,4369.7,0.21428574]
[1756996755771,8.13747425,4369.8,4369.7,0.21428574]
[1756996755966,8.92947425,4369.8,4369.7,0.21428574]
[1756996756172,3.08064374,4369.4,4369.3,0.004]
[1756996756399,7.66196201,4369.4,4369.3,0.004]
[1756996756586,4.91096201,4369.4,4369.3,0.004]
[1756996756912,8.84096201,4369.4,4369.3,0.004]
[1756996757272,4.87211827,4369.4,4369.3,0.004]
[1756996757593,7.63416201,4369.4,4369.3,0.004]
[1756996757769,5.34551827,4369.4,4369.3,0.004]
[1756996758303,4.11896201,4369.4,4369.3,0.004]
[1756996758472,7.63416201,4369.4,4369.3,0.004]
[1756996758667,3.70416201,4369.4,4369.3,0.004]
[1756996758974,4.87211827,4369.4,4369.3,0.004]
[1756996759370,1.41551827,4369.4,4369.3,0.004]
[1756996759589,7.09724374,4369.4,4369.3,0.004]
[1756996759798,5.2234,4369.4,4369.3,0.004]
[1756996759969,4.8086,4369.4,4369.3,0.004]
[1756996760167,4.3352,4369.4,4369.3,0.004]
[1756996760482,4.8086,4369.4,4369.3,0.004]
[1756996760678,0.88606,4369.4,4369.3,0.004]
[1756996760871,7.99290374,4369.4,4369.3,0.004]
[1756996761069,7.57810374,4369.4,4369.3,0.004]
[1756996761686,3.17470374,4369.4,4369.3,0.004]
[1756996761885,8.78490374,4369.4,4369.3,0.004]
[1756996762306,4.85490374,4369.4,4369.3,0.004]
[1756996762484,8.78490374,4369.4,4369.3,0.004]
[1756996763392,4.85490374,4369.4,4369.3,0.004]
[1756996763593,8.78490374,4369.4,4369.3,0.004]
[1756996763803,8.37010374,4369.4,4369.3,0.004]
[1756996764032,7.89670374,4369.4,4369.3,0.004]
[1756996764183,8.37010374,4369.4,4369.3,0.004]
[1756996764507,4.44010374,4369.4,4369.3,0.004]
[1756996764697,8.37010374,4369.4,4369.3,0.004]
[1756996765210,1.38726,4369.4,4369.3,0.004]
[1756996765423,4.0444,4369.4,4369.3,0.004]
[1756996765710,0.4052,4369.4,4369.3,0.004]
[1756996766081,7.09724374,4369.4,4369.3,0.004]
[1756996766404,2.69384374,4369.4,4369.3,0.004]
[1756996766582,6.62304374,4369.4,4369.3,0.004]
[1756996766783,7.33268811,4369.4,4369.3,0.004]
[1756996766984,1.11404437,4369.4,4369.3,0.004]
[1756996767197,4.0436,4369.4,4369.3,0.004]
[1756996767391,7.09644374,4369.4,4369.3,0.004]
[1756996767585,2.40224374,4369.4,4369.3,0.004]
[1756996767806,6.62304374,4369.4,4369.3,0.004]
[1756996768008,6.33224374,4369.4,4369.3,0.004]
[1756996768213,0.97567969,4369.4,4369.3,0.004]
[1756996768434,4.0436,4369.4,4369.3,0.004]
[1756996768799,4.0436,4369.4,4369.3,0.815]
[1756996769153,4.0436,4369.4,4369.3,0.3174]
[1756996769301,0.1136,4369.4,4369.3,0.004]
[1756996769505,4.3344,4369.4,4369.3,0.004]
[1756996769702,4.75323373,4369.4,4369.3,0.004]
[1756996770009,4.75323373,4369.4,4369.3,0.815]
[1756996770724,0.1136,4369.4,4369.3,0.815]
[1756996770928,3.93,4369.4,4369.3,0.815]
[1756996771231,4.3467,4369.4,4369.3,0.21785004]
[1756996771626,4.0444,4369.4,4369.3,0.21785004]
[1756996771829,4.3467,4369.4,4369.3,0.21785004]
[1756996772437,4.3467,4369.4,4369.3,0.004]
[1756996772637,7.74267432,4369.4,4369.3,0.004]
[1756996773137,5.45403058,4369.4,4369.3,0.004]
[1756996773727,7.74267432,4369.4,4369.3,0.004]
[1756996773935,8.53467432,4369.4,4369.3,0.004]
[1756996774810,15.68855472,4369.4,4369.3,0.004]
[1756996775049,8.94947432,4369.4,4369.3,0.004]
[1756996775214,3.08069612,4369.3,4368.8,0.004]
[1756996775540,9.81998607,4368.9,4368.8,0.004]
[1756996775747,18.73728607,4368.9,4368.8,0.004]
[1756996775913,0.792,4368.0,4367.8,0.025]
[1756996776247,4.8818297,4367.9,4367.8,0.025]
[1756996776461,5.7294,4367.9,4367.8,0.025]
[1756996776745,9.12300865,4367.9,4367.8,0.025]
[1756996778050,6.83357895,4367.9,4367.8,0.025]
[1756996778224,6.53127895,4367.9,4367.8,0.025]
[1756996778424,2.60227895,4367.9,4367.8,0.025]
[1756996778620,6.53227895,4367.9,4367.8,0.3217]
[1756996778822,1.8004,4367.9,4367.8,0.7925]
[1756996779030,5.7294,4367.9,4367.8,0.7925]
[1756996779359,5.7294,4367.9,4367.8,0.025]
[1756996779714,1.8004,4367.9,4367.8,0.3217]
[1756996779917,5.7294,4367.9,4367.8,0.7925]
[1756996780946,5.7294,4367.9,4367.8,1.2273]
[1756996781820,5.7294,4367.9,4367.8,0.025]
[1756996782020,6.60464,4367.9,4367.8,0.025]
[1756996782347,7.04844,4367.9,4367.8,0.025]
[1756996783015,9.3378697,4367.9,4367.8,0.025]
[1756996783456,10.1298697,4367.9,4367.8,0.025]
[1756996784233,3.46764,4367.9,4367.8,0.025]
[1756996784433,7.09434,4367.9,4367.8,0.025]
[1756996784653,6.60464,4367.9,4367.8,0.025]
[1756996784950,6.30234,4367.9,4367.8,0.025]
[1756996785723,6.60464,4367.9,4367.8,0.025]
[1756996786447,10.1298697,4367.9,4367.8,0.025]
[1756996786648,10.5446697,4367.9,4367.8,0.025]
[1756996787024,10.1298697,4367.9,4367.8,0.025]
[1756996787249,5.4547697,4367.9,4367.8,0.025]
[1756996787442,9.3837697,4367.9,4367.8,0.025]
[1756996787650,10.1298697,4367.9,4367.8,0.025]
[1756996788351,10.5446697,4367.9,4367.8,0.025]
[1756996789422,10.5446697,4367.9,4367.8,0.029]
[1756996790528,10.1298697,4367.9,4367.8,0.029]
[1756996791356,9.6860697,4367.9,4367.8,0.029]
[1756996791522,6.2008697,4367.9,4367.8,0.029]
[1756996791716,10.1298697,4367.9,4367.8,0.029]
[1756996791921,7.39664,4367.9,4367.8,0.029]
[1756996792117,7.39584,4367.9,4367.8,0.029]
[1756996793235,2.37254,4367.9,4367.8,0.3257]
[1756996793432,1.7996,4367.9,4367.8,0.7965]
[1756996793650,5.6142,4367.9,4367.8,0.7965]
[1756996793957,5.6142,4367.9,4367.8,3.52078211]
[1756996794338,5.7286,4367.9,4367.8,3.52078211]
[1756996794762,1.7996,4367.9,4367.8,3.52078211]
[1756996795054,5.7286,4367.9,4367.8,3.52078211]
[1756996795928,5.7286,4367.9,4367.8,3.08598211]
[1756996796955,5.7286,4367.9,4367.8,0.7965]
[1756996797334,5.7286,4367.9,4367.8,0.029]
[1756996797530,5.7286,4367.9,4367.8,0.3257]
[1756996797732,5.7286,4367.9,4367.8,0.7965]
[1756996797934,0.001,4369.4,4367.9,3.0]
[1756996798130,0.1144,4369.2,4369.0,6.02754908]
[1756996798334,3.928,4369.1,4369.0,8.31640236]
[1756996798563,3.928,4369.1,4369.0,2.58555328]
[1756996798851,3.928,4369.1,4369.0,4.17910754]
[1756996799830,3.928,4369.1,4369.0,3.74430754]
[1756996800032,3.928,4369.1,4369.0,3.49115328]
[1756996801664,0.1144,4369.2,4369.1,2.28880089]
[1756996801870,4.0424,4369.2,4369.1,2.28880089]
[1756996802069,4.0424,4369.2,4369.1,3.52980089]
[1756996802281,4.0424,4369.2,4369.1,7.3568316]
[1756996802282,0.1144,4369.2,4369.1,7.3568316]
[1756996802439,0.1154,4369.4,4369.3,2.28869612]
[1756996802640,0.001,4369.4,4369.3,2.28869612]
[1756996802839,3.927,4370.7,4369.9,2.28838188]
[1756996803073,4.0414,4370.7,4369.9,6.64378188]
[1756996803274,3.927,4371.0,4370.0,3.0]
[1756996803594,1e-08,4370.8,4370.7,2.28796302]
[1756996803877,1e-08,4370.8,4370.7,5.59596302]
[1756996804042,3.92700001,4370.8,4370.7,5.59596302]
[1756996804390,4.18580001,4370.8,4370.6,0.11658193]
[1756996804689,0.41858,4370.7,4370.2,2.28822435]
[1756996804982,3.927,4370.6,4370.5,2.28806772]
[1756996805190,3.927,4370.6,4370.5,2.59606772]
[1756996805472,3.927,4370.6,4370.5,0.308]
[1756996805638,2.28770457,4371.2,4370.5,0.308]
[1756996805843,6.21477117,4371.1,4370.1,2.28827173]
[1756996806036,0.89919242,4371.0,4369.9,0.4511]
[1756996806246,5.613,4370.9,4370.2,2.28822114]
[1756996806468,5.613,4370.9,4370.3,2.28815977]
[1756996806656,5.613,4370.9,4370.2,2.28821937]
[1756996806856,5.613,4370.9,4370.3,2.2881695]
[1756996807170,0.74475924,4370.8,4370.3,2.2881695]
[1756996807366,5.613,4370.9,4370.7,0.308]
[1756996807569,1.686,4370.9,4370.7,0.308]
[1756996808069,3.927,4370.8,4369.9,0.68779496]
[1756996808248,4.2358,4370.8,4369.9,0.68779496]
[1756996808454,2.2880858,4370.5,4369.9,0.68779496]
[1756996808648,3.926,4370.4,4369.9,0.68779496]
[1756996808877,0.3088,4370.0,4369.8,0.025]
[1756996809045,3.926,4369.9,4369.8,0.025]
[1756996809247,4.8614,4369.9,4369.8,0.025]
[1756996809549,5.1702,4369.9,4369.8,0.025]
[1756996809752,9.89042974,4369.9,4369.8,0.025]
[1756996810249,7.60204786,4369.9,4369.8,0.025]
[1756996810444,9.89042974,4369.9,4369.8,0.025]
[1756996810772,10.68242974,4369.9,4369.8,0.025]
[1756996811623,7.60204786,4369.9,4369.8,0.025]
[1756996811748,5.9208,4369.9,4369.8,0.025]
[1756996812084,5.612,4369.9,4369.8,0.025]
[1756996812546,5.9208,4369.9,4369.8,0.025]
[1756996812745,6.8562,4369.9,4369.8,0.025]
[1756996812955,6.3667,4369.9,4369.8,0.025]
[1756996813278,5.612,4369.9,4369.8,0.025]
[1756996813478,8.20918188,4369.9,4369.8,0.025]
[1756996813683,8.32358188,4369.9,4369.8,0.025]
[1756996813980,3.926,4369.9,4369.8,6.10333425]
[1756996814153,1.687,4370.8,4369.9,3.0]
[1756996814360,1.687,4370.8,4369.8,5.10518423]
[1756996814361,3.926,4370.7,4370.0,0.4819]
[1756996814560,3.926,4370.7,4370.6,0.308]
[1756996814754,3.926,4370.7,4370.3,2.28817217]
[1756996815187,3.926,4370.7,4370.2,2.28821344]
[1756996815350,3.926,4370.7,4370.0,0.4819]
[1756996815550,0.3088,4370.1,4369.8,0.025]
[1756996815750,1.7274,4370.6,4369.8,0.025]
[1756996815751,3.926,4370.0,4369.8,0.025]
[1756996815953,3.926,4369.9,4369.8,2.3134195]
[1756996816282,3.926,4369.9,4369.8,0.333]
[1756996816455,3.926,4369.9,4369.8,0.025]
[1756996816786,3.56952391,4370.6,4369.8,2.62143425]
[1756996816970,2.2881893,4370.3,4369.8,0.025]
[1756996817151,0.3088,4369.9,4369.8,0.025]
[1756996817482,6.52238188,4369.9,4369.8,0.025]
[1756996817659,7.45778188,4369.9,4369.8,0.025]
[1756996818703,8.24978188,4369.9,4369.8,0.025]
[1756996818853,9.3035896,4369.9,4369.8,0.025]
[1756996819060,6.52570772,4369.9,4369.8,0.025]
[1756996819269,0.792,4370.2,4369.8,0.025]
[1756996819495,0.792,4370.0,4369.8,0.025]
[1756996819786,3.926,4369.9,4369.8,0.025]
[1756996821287,3.926,4369.9,4369.8,0.333]
[1756996821455,3.926,4369.9,4369.8,0.025]
[1756996821656,3.926,4369.9,4369.8,0.02]
[1756996821960,4.2348,4369.9,4369.8,0.02]
[1756996822590,8.90289048,4369.9,4369.8,0.02]
[1756996823364,5.6791086,4369.9,4369.8,0.02]
[1756996823563,1.7531086,4369.9,4369.8,0.02]
[1756996823778,5.0268,4369.9,4369.8,0.02]
[1756996823977,5.1412,4369.9,4369.8,0.02]
[1756996824182,7.42958188,4369.9,4369.8,0.02]
[1756996824390,7.87548188,4369.9,4369.8,0.02]
[1756996824577,8.36498188,4369.9,4369.8,0.02]
[1756996824886,9.430308,4369.9,4369.8,0.02]
[1756996827391,12.430308,4369.9,4369.8,0.02]
[1756996827591,17.700308,4369.9,4369.8,0.02]
[1756996827992,17.700308,4369.9,4369.8,0.024]
[1756996828387,13.774308,4369.9,4369.8,0.024]
[1756996828585,12.838908,4369.9,4369.8,0.024]
[1756996828771,14.47652612,4369.9,4369.8,0.024]
[1756996828978,9.530108,4369.9,4369.8,0.024]
[1756996829362,11.16772612,4369.9,4369.8,0.024]
[1756996829799,10.37572612,4369.9,4369.8,0.024]
[1756996830108,7.12732612,4369.9,4369.8,0.024]
[1756996830297,11.05332612,4369.9,4369.8,0.024]
[1756996830803,0.001,4370.7,4369.8,2.60133425]
[1756996830975,0.1144,4369.9,4369.8,2.60133425]
[1756996831366,0.001,4370.7,4370.2,2.28819022]
[1756996831597,3.71,4370.6,4370.4,2.28807903]
[1756996831795,3.71,4370.6,4370.5,2.79082087]
[1756996831966,3.8244,4370.6,4370.5,0.50275315]
[1756996834005,4.0394,4370.6,4370.5,0.50275315]
[1756996834168,0.1144,4370.6,4370.5,0.50275315]
[1756996834366,4.0394,4370.6,4370.5,0.50275315]
[1756996835107,4.0394,4370.6,4370.5,0.50285167]
[1756996835896,4.0394,4370.6,4370.5,4.05955825]
[1756996836097,0.1144,4370.6,4370.5,4.05955825]
[1756996836667,0.001,4370.7,4370.6,2.28801537]
[1756996836873,0.001,4370.7,4370.6,3.44426704]
[1756996837109,0.001,4370.7,4370.6,3.73316704]
[1756996837412,0.001,4370.7,4370.6,4.60818152]
[1756996838119,0.001,4370.7,4370.6,4.60805348]
[1756996838596,0.001,4370.7,4370.6,4.13808915]
[1756996839181,0.001,4370.7,4370.6,4.60798915]
[1756996839381,0.001,4370.7,4370.6,3.73297467]
[1756996840196,0.001,4370.7,4370.6,3.75585482]
[1756996840402,0.001,4370.7,4370.6,3.73297467]
[1756996842102,0.001,4370.7,4370.6,3.73280936]
[1756996842308,0.001,4370.7,4370.6,4.34633707]
[1756996843012,0.0002,4370.7,4370.6,4.34633707]
[1756996843413,0.0002,4370.7,4370.6,3.87643707]
[1756996845895,0.0002,4370.7,4370.6,3.40403707]
[1756996846441,0.0002,4370.7,4370.6,4.34633707]
[1756996846592,0.0002,4370.7,4370.6,3.87643707]
[1756996846916,0.0002,4370.7,4370.6,3.19044308]
[1756996847116,0.0002,4370.7,4370.6,2.28801537]
[1756996848413,0.0002,4370.7,4370.6,2.57691537]
[1756996848616,0.0002,4370.7,4370.6,3.51921537]
[1756996851619,0.0002,4370.7,4370.6,3.04931537]
[1756996851911,0.0002,4370.7,4370.6,3.51921537]
[1756996852122,0.0002,4370.7,4370.6,4.50368368]
[1756996853828,0.0002,4370.7,4370.6,3.56138368]
[1756996854208,0.0002,4370.7,4370.6,3.27248368]
[1756996854403,0.0002,4370.7,4370.6,2.28801537]
[1756996854792,0.3008,4370.7,4370.6,2.28801537]
[1756996855495,0.7718,4370.7,4369.9,4.0364]
[1756996855719,0.1144,4370.4,4370.0,2.28832461]
[1756996855930,0.1144,4370.4,4370.3,2.57707243]
[1756996856098,0.1144,4370.5,4370.4,2.28812008]
[1756996856298,0.415,4370.5,4370.4,2.28812008]
[1756996856521,0.1144,4370.5,4370.4,2.28812008]
[1756996857415,0.0002,4370.7,4370.4,0.2889]
[1756996857695,0.0002,4370.7,4370.6,2.28801537]
[1756996857895,0.0002,4370.7,4370.6,2.83933085]
[1756996858204,0.0002,4370.7,4370.6,4.18493085]
[1756996860404,0.0002,4370.7,4370.6,7.18493085]
[1756996860803,0.0002,4370.7,4370.6,6.71503085]
[1756996861009,0.0002,4370.7,4370.6,10.63703085]
[1756996861305,0.0002,4370.7,4370.6,11.10613085]
[1756996861824,0.0002,4370.7,4370.6,10.63703085]
[1756996862025,0.0002,4370.7,4370.6,10.16463085]
[1756996862228,0.0002,4370.7,4370.6,9.87573085]
[1756996862432,0.0002,4370.7,4370.6,10.18103085]
[1756996863231,0.0002,4370.7,4370.6,6.87573085]
[1756996863615,0.0002,4370.7,4370.6,7.18103085]
[1756996863921,0.0002,4370.7,4370.6,7.66373085]
[1756996864276,0.0002,4370.7,4370.6,20.08246561]
[1756996865412,0.0002,4370.7,4370.6,15.20866561]
[1756996865604,0.0002,4370.7,4370.6,19.12966561]
[1756996866144,0.0002,4370.7,4370.6,22.61236561]
[1756996866706,0.0002,4370.7,4370.6,22.61636561]
[1756996867406,0.0002,4370.7,4370.6,22.13366561]
[1756996868136,0.0002,4370.7,4370.6,18.21266561]
[1756996868310,0.0002,4370.7,4370.6,22.13366561]
[1756996868643,0.0004,4370.8,4370.7,5.28796302]
[1756996868827,0.0004,4370.8,4370.7,5.56787245]
[1756996869033,0.0004,4370.8,4370.7,9.79417245]
[1756996870118,0.2976,4370.8,4370.7,9.48887245]
[1756996870318,0.0004,4370.8,4370.7,9.79417245]
[1756996872058,0.0004,4370.8,4370.7,9.48887245]
[1756996872648,0.7633,4370.8,4370.7,6.20896302]
[1756996872950,1.2369,4370.8,4370.7,2.28796302]
[1756996873305,1.3513,4370.8,4370.7,2.28796302]
[1756996873655,0.1148,4370.8,4370.7,3.07596302]
[1756996873953,0.0004,4370.8,4370.7,3.52216086]
[1756996874119,0.0004,4370.8,4370.7,6.52216086]
[1756996874525,0.0004,4370.8,4370.7,6.21686086]
[1756996875812,0.0004,4370.8,4370.7,10.13686086]
[1756996876717,0.0004,4370.8,4370.7,10.44216086]
[1756996876920,0.0004,4370.8,4370.7,10.13686086]
[1756996877156,0.7633,4370.8,4370.7,2.28796302]
[1756996877316,1.2369,4370.8,4370.7,2.28796302]
[1756996878160,0.7633,4370.8,4370.7,2.28796302]
[1756996878539,0.7633,4370.8,4370.6,2.29201537]
[1756996878540,1.2369,4370.8,4370.6,0.004]
[1756996878746,1.2917732,4370.7,4370.6,0.004]
[1756996879036,0.8181732,4370.7,4370.6,2.29201537]
[1756996879249,1.2365,4370.7,4370.6,0.004]
[1756996879447,3.63886302,4370.7,4370.6,0.004]
[1756996879751,1.3509,4370.7,4370.6,0.004]
[1756996880965,3.63886302,4370.7,4370.6,0.004]
[1756996881124,4.00278932,4370.7,4370.6,0.004]
[1756996882645,5.68778932,4370.7,4370.6,0.004]
[1756996883417,6.47978932,4370.7,4370.6,0.004]
[1756996884315,9.47978932,4370.7,4370.6,0.004]
[1756996885128,13.39978932,4370.7,4370.6,0.004]
[1756996886346,7.1918263,4370.7,4370.6,0.004]
[1756996886646,13.39978932,4370.7,4370.6,0.004]
[1756996889221,9.3805263,4370.7,4370.6,0.004]
[1756996889433,6.3805263,4370.7,4370.6,0.004]
[1756996891235,5.7194,4370.7,4370.6,0.3194]